[Event "Titled Tuesday Blitz December 27 Late 2022"]
[White "Adla, Diego"]
[Black "Ai, Evan"]
[WhiteFideId "100072"]
[BlackFideId "2094770"]
[WhiteElo "2383"]
[BlackElo "2055"]
[Result "1/2-1/2"]
[Round "01"]
[TimeControl "180+2"]
[Date "2022.12.27"]
[WhiteClock "0:00:17"]
[BlackClock "0:00:10"]

1. Nf3 {[%clk 0:02:55]}  Nf6 {[%clk 0:02:56]} 2. g3 {[%clk 0:02:55]}  d5 {[%clk 0:02:55]} 3. Bg2 {[%clk 0:02:54]}  Bg4 {[%clk 0:02:53]} 4. c4 {[%clk 0:02:47]}  c6 {[%clk 0:02:51]} 5. Qb3 {[%clk 0:02:43]}  Qc7 {[%clk 0:02:49]} 6. d4 {[%clk 0:02:39]}  Nbd7 {[%clk 0:02:48]} 7. cxd5 {[%clk 0:02:32]}  cxd5 {[%clk 0:02:49]} 8. Nc3 {[%clk 0:02:28]}  e6 {[%clk 0:02:48]} 9. Bf4 {[%clk 0:02:24]}  Qb6 {[%clk 0:02:44]} 10. O-O {[%clk 0:02:21]}  Qxb3 {[%clk 0:02:42]} 11. axb3 {[%clk 0:02:20]}  a6 {[%clk 0:02:40]} 12. Ne5 {[%clk 0:02:09]}  Nxe5 {[%clk 0:02:37]} 13. Bxe5 {[%clk 0:02:06]}  Nd7 {[%clk 0:02:37]} 14. Bf4 {[%clk 0:02:00]}  Bb4 {[%clk 0:02:33]} 15. e4 {[%clk 0:01:58]}  dxe4 {[%clk 0:02:31]} 16. Bxe4 {[%clk 0:01:57]}  a5 {[%clk 0:02:17]} 17. Nb5 {[%clk 0:01:48]}  O-O {[%clk 0:02:14]} 18. Bxb7 {[%clk 0:01:48]}  Be2 {[%clk 0:02:08]} 19. Bxa8 {[%clk 0:01:44]}  Bxb5 {[%clk 0:01:31]} 20. Bf3 {[%clk 0:01:25]}  Bxf1 {[%clk 0:01:31]} 21. Kxf1 {[%clk 0:01:26]}  Nb6 {[%clk 0:01:31]} 22. Rc1 {[%clk 0:01:23]}  Rc8 {[%clk 0:01:22]} 23. Rxc8+ {[%clk 0:01:21]}  Nxc8 {[%clk 0:01:23]} 24. d5 {[%clk 0:01:22]}  exd5 {[%clk 0:01:22]} 25. Bxd5 {[%clk 0:01:22]}  Kf8 {[%clk 0:01:21]} 26. Ke2 {[%clk 0:01:21]}  Ke7 {[%clk 0:01:16]} 27. Kd3 {[%clk 0:01:20]}  f6 {[%clk 0:01:14]} 28. Bg8 {[%clk 0:01:15]}  h6 {[%clk 0:01:12]} 29. Kc4 {[%clk 0:01:14]}  g5 {[%clk 0:01:08]} 30. Bc7 {[%clk 0:01:12]}  Kd7 {[%clk 0:01:08]} 31. Bb8 {[%clk 0:01:11]}  Nd6+ {[%clk 0:00:57]} 32. Kd5 {[%clk 0:01:10]}  Nb5 {[%clk 0:00:50]} 33. Be6+ {[%clk 0:01:08]}  Ke7 {[%clk 0:00:50]} 34. Bg4 {[%clk 0:01:05]}  Nd6 {[%clk 0:00:46]} 35. Kc6 {[%clk 0:01:05]}  Ne4 {[%clk 0:00:41]} 36. f3 {[%clk 0:01:01]}  Nd2 {[%clk 0:00:38]} 37. Bc7 {[%clk 0:00:57]}  Nxb3 {[%clk 0:00:38]} 38. Kb5 {[%clk 0:00:57]}  f5 {[%clk 0:00:34]} 39. Bh3 {[%clk 0:00:56]}  Nd4+ {[%clk 0:00:34]} 40. Ka4 {[%clk 0:00:55]}  Ke6 {[%clk 0:00:23]} 41. Bxa5 {[%clk 0:00:53]}  Bxa5 {[%clk 0:00:24]} 42. Kxa5 {[%clk 0:00:53]}  Nxf3 {[%clk 0:00:25]} 43. b4 {[%clk 0:00:53]}  Nxh2 {[%clk 0:00:20]} 44. b5 {[%clk 0:00:51]}  Nf3 {[%clk 0:00:20]} 45. b6 {[%clk 0:00:50]}  Ne5 {[%clk 0:00:21]} 46. b7 {[%clk 0:00:44]}  Nd7 {[%clk 0:00:20]} 47. Bf1 {[%clk 0:00:42]}  Kd6 {[%clk 0:00:19]} 48. Bb5 {[%clk 0:00:37]}  Nb8 {[%clk 0:00:19]} 49. Kb6 {[%clk 0:00:36]}  f4 {[%clk 0:00:19]} 50. gxf4 {[%clk 0:00:36]}  gxf4 {[%clk 0:00:20]} 51. Be2 {[%clk 0:00:32]}  Nd7+ {[%clk 0:00:20]} 52. Ka7 {[%clk 0:00:31]}  Kc7 {[%clk 0:00:21]} 53. Bf3 {[%clk 0:00:27]}  Nb8 {[%clk 0:00:21]} 54. Ka8 {[%clk 0:00:27]}  Nd7 {[%clk 0:00:18]} 55. Bh5 {[%clk 0:00:23]}  Nb8 {[%clk 0:00:10]} 56. Bg4 {[%clk 0:00:22]}  Nc6 {[%clk 0:00:07]} 57. Be2 {[%clk 0:00:19]}  Nb8 {[%clk 0:00:07]} 58. Bf3 {[%clk 0:00:20]}  Nd7 {[%clk 0:00:07]} 59. Bh5 {[%clk 0:00:20]}  Nb6+ {[%clk 0:00:06]} 60. Ka7 {[%clk 0:00:19]}  Nd7 {[%clk 0:00:07]} 61. Bf3 {[%clk 0:00:17]}  Nb8 {[%clk 0:00:08]} 62. Bg4 {[%clk 0:00:17]}  Nc6+ {[%clk 0:00:08]} 63. Ka8 {[%clk 0:00:17]}  Nb8 {[%clk 0:00:08]} 64. Bh5 {[%clk 0:00:17]}  Nd7 {[%clk 0:00:08]} 65. Ka7 {[%clk 0:00:16]}  Nb8 {[%clk 0:00:08]} 66. Bf3 {[%clk 0:00:17]}  Nd7 {[%clk 0:00:08]} 67. Bg4 {[%clk 0:00:17]}  Nb8 {[%clk 0:00:09]} 68. Ka8 {[%clk 0:00:17]}  Nc6 {[%clk 0:00:09]} 69. Be2 {[%clk 0:00:17]}  Nb8 {[%clk 0:00:10]} 70. Bf3 {[%clk 0:00:17]} 1/2-1/2


[Site "https://www.chess.com"]

[Event "Titled Tuesday Blitz December 27 Late 2022"]
[White "Andreev, Eduard"]
[Black "Kho, Darrell"]
[WhiteFideId "14103400"]
[BlackFideId "1019317"]
[WhiteElo "2413"]
[BlackElo "2075"]
[Result "1/2-1/2"]
[Round "01"]
[TimeControl "180+2"]
[Date "2022.12.27"]
[WhiteClock "0:00:08"]
[BlackClock "0:00:09"]

1. Nf3 {[%clk 0:03:00]}  d5 {[%clk 0:02:59]} 2. c4 {[%clk 0:03:00]}  d4 {[%clk 0:02:59]} 3. e3 {[%clk 0:02:57]}  Nc6 {[%clk 0:02:58]} 4. exd4 {[%clk 0:02:52]}  Nxd4 {[%clk 0:02:57]} 5. d3 {[%clk 0:02:50]}  Bg4 {[%clk 0:02:45]} 6. Be2 {[%clk 0:02:45]}  Bxf3 {[%clk 0:02:39]} 7. Bxf3 {[%clk 0:02:44]}  Nxf3+ {[%clk 0:02:40]} 8. Qxf3 {[%clk 0:02:45]}  c6 {[%clk 0:02:40]} 9. O-O {[%clk 0:02:41]}  Nf6 {[%clk 0:02:39]} 10. Nc3 {[%clk 0:02:38]}  e6 {[%clk 0:02:38]} 11. Bg5 {[%clk 0:02:35]}  Be7 {[%clk 0:02:38]} 12. Rad1 {[%clk 0:02:34]}  h6 {[%clk 0:02:37]} 13. Bh4 {[%clk 0:02:33]}  Qd4 {[%clk 0:02:31]} 14. Bg3 {[%clk 0:02:31]}  O-O {[%clk 0:02:24]} 15. Rfe1 {[%clk 0:02:30]}  Rad8 {[%clk 0:02:20]} 16. Be5 {[%clk 0:02:21]}  Qb6 {[%clk 0:02:20]} 17. h3 {[%clk 0:02:08]}  Nd7 {[%clk 0:02:07]} 18. Bf4 {[%clk 0:01:56]}  Bf6 {[%clk 0:02:01]} 19. Ne4 {[%clk 0:01:53]}  Be5 {[%clk 0:01:41]} 20. Bxe5 {[%clk 0:01:27]}  Nxe5 {[%clk 0:01:41]} 21. Qg3 {[%clk 0:01:26]}  Ng6 {[%clk 0:01:37]} 22. b3 {[%clk 0:01:26]}  Qd4 {[%clk 0:01:20]} 23. h4 {[%clk 0:01:17]}  Qe5 {[%clk 0:01:18]} 24. Qxe5 {[%clk 0:01:05]}  Nxe5 {[%clk 0:01:18]} 25. Nc5 {[%clk 0:01:03]}  Ng6 {[%clk 0:00:56]} 26. Nxb7 {[%clk 0:01:02]}  Rb8 {[%clk 0:00:51]} 27. Na5 {[%clk 0:00:59]}  c5 {[%clk 0:00:44]} 28. g3 {[%clk 0:00:57]}  Rb6 {[%clk 0:00:38]} 29. h5 {[%clk 0:00:46]}  Ne7 {[%clk 0:00:34]} 30. Re5 {[%clk 0:00:45]}  Rc8 {[%clk 0:00:27]} 31. d4 {[%clk 0:00:42]}  Ra6 {[%clk 0:00:12]} 32. Nb7 {[%clk 0:00:30]}  cxd4 {[%clk 0:00:11]} 33. a4 {[%clk 0:00:19]}  Nc6 {[%clk 0:00:11]} 34. Rb5 {[%clk 0:00:17]}  Rb6 {[%clk 0:00:11]} 35. c5 {[%clk 0:00:14]}  Rxb5 {[%clk 0:00:10]} 36. axb5 {[%clk 0:00:15]}  Ne5 {[%clk 0:00:07]} 37. c6 {[%clk 0:00:14]}  a6 {[%clk 0:00:04]} 38. bxa6 {[%clk 0:00:12]}  Rxc6 {[%clk 0:00:04]} 39. Ra1 {[%clk 0:00:12]}  Rc8 {[%clk 0:00:03]} 40. a7 {[%clk 0:00:11]}  Ra8 {[%clk 0:00:03]} 41. b4 {[%clk 0:00:05]}  Nc6 {[%clk 0:00:04]} 42. b5 {[%clk 0:00:06]}  Rxa7 {[%clk 0:00:03]} 43. Rxa7 {[%clk 0:00:04]}  Nxa7 {[%clk 0:00:04]} 44. b6 {[%clk 0:00:05]}  Nc8 {[%clk 0:00:04]} 45. Na5 {[%clk 0:00:04]}  Nxb6 {[%clk 0:00:04]} 46. Nc6 {[%clk 0:00:04]}  Nd5 {[%clk 0:00:03]} 47. Kf1 {[%clk 0:00:05]}  Kf8 {[%clk 0:00:03]} 48. Nxd4 {[%clk 0:00:05]}  Ke7 {[%clk 0:00:03]} 49. f3 {[%clk 0:00:06]}  f6 {[%clk 0:00:03]} 50. Kf2 {[%clk 0:00:07]}  Kf7 {[%clk 0:00:03]} 51. g4 {[%clk 0:00:07]}  Ne7 {[%clk 0:00:03]} 52. Ke3 {[%clk 0:00:07]}  e5 {[%clk 0:00:04]} 53. Nb3 {[%clk 0:00:07]}  Ke6 {[%clk 0:00:04]} 54. Kf2 {[%clk 0:00:07]}  Nd5 {[%clk 0:00:04]} 55. Nd2 {[%clk 0:00:08]}  Nf4 {[%clk 0:00:05]} 56. Ne4 {[%clk 0:00:09]}  Nd3+ {[%clk 0:00:05]} 57. Ke3 {[%clk 0:00:09]}  Nf4 {[%clk 0:00:05]} 58. Ng3 {[%clk 0:00:09]}  Nd5+ {[%clk 0:00:05]} 59. Kf2 {[%clk 0:00:09]}  Nf4 {[%clk 0:00:06]} 60. Nf5 {[%clk 0:00:09]}  Nh3+ {[%clk 0:00:06]} 61. Ke3 {[%clk 0:00:10]}  Kf7 {[%clk 0:00:05]} 62. Nd6+ {[%clk 0:00:09]}  Ke6 {[%clk 0:00:05]} 63. Nf5 {[%clk 0:00:10]}  Kf7 {[%clk 0:00:05]} 64. Nd6+ {[%clk 0:00:10]}  Ke6 {[%clk 0:00:06]} 65. Ne8 {[%clk 0:00:10]}  Kf7 {[%clk 0:00:06]} 66. Nc7 {[%clk 0:00:11]}  Nf4 {[%clk 0:00:04]} 67. Kf2 {[%clk 0:00:09]}  Ne6 {[%clk 0:00:05]} 68. Nd5 {[%clk 0:00:09]}  Nd4 {[%clk 0:00:05]} 69. Ne3 {[%clk 0:00:09]}  Ne6 {[%clk 0:00:05]} 70. Kg3 {[%clk 0:00:09]}  Nd4 {[%clk 0:00:06]} 71. Nd5 {[%clk 0:00:09]}  Ne6 {[%clk 0:00:06]} 72. Kf2 {[%clk 0:00:09]}  Nd4 {[%clk 0:00:06]} 73. Ke3 {[%clk 0:00:09]}  Ne6 {[%clk 0:00:07]} 74. Ke4 {[%clk 0:00:10]}  Nc5+ {[%clk 0:00:07]} 75. Ke3 {[%clk 0:00:10]}  Ne6 {[%clk 0:00:07]} 76. Nc3 {[%clk 0:00:10]}  Nd4 {[%clk 0:00:08]} 77. Ne4 {[%clk 0:00:10]}  Ne6 {[%clk 0:00:08]} 78. Ng3 {[%clk 0:00:10]}  Nd4 {[%clk 0:00:08]} 79. Ke4 {[%clk 0:00:10]}  Ne6 {[%clk 0:00:08]} 80. Nf5 {[%clk 0:00:10]}  Ng5+ {[%clk 0:00:09]} 81. Ke3 {[%clk 0:00:11]}  Ne6 {[%clk 0:00:09]} 82. Kf2 {[%clk 0:00:10]}  Nf4 {[%clk 0:00:09]} 83. Ke3 {[%clk 0:00:10]}  Ne6 {[%clk 0:00:10]} 84. Ng3 {[%clk 0:00:09]}  Nf4 {[%clk 0:00:10]} 85. Nf1 {[%clk 0:00:10]}  Ne6 {[%clk 0:00:10]} 86. Nd2 {[%clk 0:00:10]}  Nf4 {[%clk 0:00:11]} 87. Ne4 {[%clk 0:00:11]}  Ne6 {[%clk 0:00:11]} 88. Nd6+ {[%clk 0:00:12]}  Kg8 {[%clk 0:00:11]} 89. Ke4 {[%clk 0:00:11]}  Kf8 {[%clk 0:00:10]} 90. Kf5 {[%clk 0:00:09]}  Nd4+ {[%clk 0:00:11]} 91. Ke4 {[%clk 0:00:09]}  Ke7 {[%clk 0:00:10]} 92. Nc4 {[%clk 0:00:08]}  Kf7 {[%clk 0:00:10]} 93. Ne3 {[%clk 0:00:08]}  Ne6 {[%clk 0:00:10]} 94. Nd5 {[%clk 0:00:08]}  Nd4 {[%clk 0:00:10]} 95. f4 {[%clk 0:00:05]}  Nc6 {[%clk 0:00:06]} 96. fxe5 {[%clk 0:00:03]}  Nxe5 {[%clk 0:00:06]} 97. Kf4 {[%clk 0:00:03]}  Nd7 {[%clk 0:00:06]} 98. Nc7 {[%clk 0:00:04]}  Nc5 {[%clk 0:00:05]} 99. Nb5 {[%clk 0:00:03]}  Ne6+ {[%clk 0:00:05]} 100. Kg3 {[%clk 0:00:04]}  Ng5 {[%clk 0:00:05]} 101. Nd6+ {[%clk 0:00:04]}  Kg8 {[%clk 0:00:04]} 102. Nf5 {[%clk 0:00:04]}  Kf7 {[%clk 0:00:04]} 103. Nh4 {[%clk 0:00:05]}  Kg8 {[%clk 0:00:04]} 104. Ng6 {[%clk 0:00:05]}  Kf7 {[%clk 0:00:05]} 105. Kf4 {[%clk 0:00:06]}  Kg8 {[%clk 0:00:06]} 106. Kf5 {[%clk 0:00:06]}  Kf7 {[%clk 0:00:06]} 107. Nf4 {[%clk 0:00:06]}  Nf3 {[%clk 0:00:05]} 108. Nd5 {[%clk 0:00:06]}  Ne5 {[%clk 0:00:05]} 109. Nb4 {[%clk 0:00:06]}  Kg8 {[%clk 0:00:05]} 110. Kf4 {[%clk 0:00:06]}  Kf7 {[%clk 0:00:06]} 111. Nc2 {[%clk 0:00:06]}  Ke7 {[%clk 0:00:06]} 112. Nd4 {[%clk 0:00:07]}  Kf7 {[%clk 0:00:07]} 113. Nf5 {[%clk 0:00:07]}  Kg8 {[%clk 0:00:07]} 114. Ne3 {[%clk 0:00:08]}  Kf7 {[%clk 0:00:08]} 115. Ng2 {[%clk 0:00:08]}  g6 {[%clk 0:00:08]} 116. hxg6+ {[%clk 0:00:06]}  Kxg6 {[%clk 0:00:08]} 117. Nh4+ {[%clk 0:00:07]}  Kf7 {[%clk 0:00:08]} 118. Nf5 {[%clk 0:00:07]}  Nxg4 {[%clk 0:00:07]} 119. Kxg4 {[%clk 0:00:07]}  h5+ {[%clk 0:00:08]} 120. Kxh5 {[%clk 0:00:07]}  Ke6 {[%clk 0:00:08]} 121. Kg6 {[%clk 0:00:07]}  Ke5 {[%clk 0:00:09]} 122. Ng7 {[%clk 0:00:07]}  Ke4 {[%clk 0:00:09]} 123. Nf5 {[%clk 0:00:08]}  Kd3 {[%clk 0:00:09]} 124. Kxf6 {[%clk 0:00:08]} 1/2-1/2


[Site "https://www.chess.com"]

[Event "Titled Tuesday Blitz December 27 Late 2022"]
[White "Araujo Sanchez, Josue"]
[Black "reevecanada"]
[WhiteFideId "6416896"]
[WhiteElo "2303"]
[BlackElo "2430"]
[Result "1-0"]
[Round "01"]
[TimeControl "180+2"]
[Date "2022.12.27"]
[WhiteClock "0:00:15"]
[BlackClock "0:00:44"]

1. e4 {[%clk 0:02:57]}  c5 {[%clk 0:02:58]} 2. Nf3 {[%clk 0:02:57]}  d6 {[%clk 0:02:59]} 3. d4 {[%clk 0:02:56]}  cxd4 {[%clk 0:03:00]} 4. Nxd4 {[%clk 0:02:57]}  Nf6 {[%clk 0:03:00]} 5. Nc3 {[%clk 0:02:57]}  a6 {[%clk 0:02:59]} 6. Be2 {[%clk 0:02:57]}  e5 {[%clk 0:02:55]} 7. Nf3 {[%clk 0:02:57]}  Be7 {[%clk 0:02:54]} 8. Bg5 {[%clk 0:02:57]}  Be6 {[%clk 0:02:54]} 9. Bxf6 {[%clk 0:02:56]}  Bxf6 {[%clk 0:02:54]} 10. O-O {[%clk 0:02:56]}  Be7 {[%clk 0:02:53]} 11. Nd5 {[%clk 0:02:55]}  Nd7 {[%clk 0:02:52]} 12. Bc4 {[%clk 0:02:56]}  Kf8 {[%clk 0:02:51]} 13. a4 {[%clk 0:02:55]}  Rc8 {[%clk 0:02:50]} 14. Qe2 {[%clk 0:02:54]}  g6 {[%clk 0:02:48]} 15. Rfd1 {[%clk 0:02:49]}  Kg7 {[%clk 0:02:48]} 16. a5 {[%clk 0:02:49]}  Nf6 {[%clk 0:02:42]} 17. c3 {[%clk 0:02:34]}  Nxd5 {[%clk 0:02:40]} 18. Bxd5 {[%clk 0:02:33]}  Rc5 {[%clk 0:02:38]} 19. Bxe6 {[%clk 0:02:23]}  fxe6 {[%clk 0:02:36]} 20. b4 {[%clk 0:02:23]}  Rxc3 {[%clk 0:02:34]} 21. Nxe5 {[%clk 0:02:22]}  Qc7 {[%clk 0:02:33]} 22. Nd3 {[%clk 0:02:22]}  Rf8 {[%clk 0:02:31]} 23. Rac1 {[%clk 0:02:20]}  Qc4 {[%clk 0:02:28]} 24. Rxc3 {[%clk 0:02:19]}  Qxc3 {[%clk 0:02:28]} 25. e5 {[%clk 0:02:19]}  d5 {[%clk 0:02:27]} 26. g3 {[%clk 0:02:19]}  Bxb4 {[%clk 0:02:24]} 27. Rb1 {[%clk 0:02:18]}  Bxa5 {[%clk 0:02:24]} 28. Rxb7+ {[%clk 0:02:06]}  Rf7 {[%clk 0:02:22]} 29. Rxf7+ {[%clk 0:01:58]}  Kxf7 {[%clk 0:02:21]} 30. Kg2 {[%clk 0:01:57]}  Ke8 {[%clk 0:02:21]} 31. Nf4 {[%clk 0:01:55]}  Qc8 {[%clk 0:02:13]} 32. Qg4 {[%clk 0:01:52]}  Kf7 {[%clk 0:02:13]} 33. Qh4 {[%clk 0:01:52]}  Qh8 {[%clk 0:02:11]} 34. Nd3 {[%clk 0:01:34]}  Bc7 {[%clk 0:02:03]} 35. Qf4+ {[%clk 0:01:32]}  Ke8 {[%clk 0:02:00]} 36. Qa4+ {[%clk 0:01:31]}  Ke7 {[%clk 0:02:00]} 37. Qb4+ {[%clk 0:01:30]}  Kd7 {[%clk 0:01:58]} 38. Nc5+ {[%clk 0:01:29]}  Kc6 {[%clk 0:01:52]} 39. Nxa6 {[%clk 0:01:29]}  Qxe5 {[%clk 0:01:50]} 40. Qa4+ {[%clk 0:01:25]}  Kb6 {[%clk 0:01:47]} 41. Nb4 {[%clk 0:01:18]}  Qe4+ {[%clk 0:01:42]} 42. f3 {[%clk 0:01:18]}  Qe2+ {[%clk 0:01:41]} 43. Kh3 {[%clk 0:01:18]}  Qxf3 {[%clk 0:01:22]} 44. Qa6+ {[%clk 0:01:17]}  Kc5 {[%clk 0:01:21]} 45. Nd3+ {[%clk 0:01:17]}  Kd4 {[%clk 0:01:20]} 46. Nf2 {[%clk 0:01:13]}  Ke5 {[%clk 0:01:14]} 47. Ng4+ {[%clk 0:01:06]}  Kf5 {[%clk 0:01:11]} 48. Nh6+ {[%clk 0:00:39]}  Kf6 {[%clk 0:01:04]} 49. Qc8 {[%clk 0:00:22]}  Qh5+ {[%clk 0:00:59]} 50. Kg2 {[%clk 0:00:22]}  Qxh6 {[%clk 0:00:59]} 51. Qxc7 {[%clk 0:00:23]}  Qg7 {[%clk 0:00:57]} 52. Qf4+ {[%clk 0:00:22]}  Ke7 {[%clk 0:00:57]} 53. Qc7+ {[%clk 0:00:21]}  Kf8 {[%clk 0:00:57]} 54. Qc8+ {[%clk 0:00:20]}  Kf7 {[%clk 0:00:56]} 55. Qd7+ {[%clk 0:00:21]}  Kf6 {[%clk 0:00:56]} 56. Qd8+ {[%clk 0:00:21]}  Qe7 {[%clk 0:00:56]} 57. Qh8+ {[%clk 0:00:21]}  Kf5 {[%clk 0:00:55]} 58. Qb8 {[%clk 0:00:21]}  e5 {[%clk 0:00:55]} 59. Qc8+ {[%clk 0:00:21]}  Kf6 {[%clk 0:00:51]} 60. Qh8+ {[%clk 0:00:21]}  Kg5 {[%clk 0:00:49]} 61. h4+ {[%clk 0:00:18]}  Kf5 {[%clk 0:00:48]} 62. Qg8 {[%clk 0:00:17]}  d4 {[%clk 0:00:46]} 63. Qd5 {[%clk 0:00:16]}  Kf6 {[%clk 0:00:45]} 64. Qf3+ {[%clk 0:00:16]}  Ke6 {[%clk 0:00:45]} 65. Qc6+ {[%clk 0:00:15]}  Qd6 {[%clk 0:00:45]} 66. Qe8+ {[%clk 0:00:15]}  Kd5 {[%clk 0:00:45]} 67. Qf7+ {[%clk 0:00:15]}  Ke4 {[%clk 0:00:44]} 68. Qf3# {[%clk 0:00:15]} 1-0


[Site "https://www.chess.com"]

[Event "Titled Tuesday Blitz December 27 Late 2022"]
[White "Ardila, Oscar Humberto"]
[Black "Ballester Llagaria, Luis Eduardo"]
[WhiteFideId "4404742"]
[BlackFideId "2297620"]
[WhiteElo "1982"]
[BlackElo "2298"]
[Result "0-1"]
[Round "01"]
[TimeControl "180+2"]
[Date "2022.12.27"]
[WhiteClock "0:00:11"]
[BlackClock "0:00:43"]

1. d4 {[%clk 0:02:58]}  d5 {[%clk 0:03:00]} 2. c4 {[%clk 0:02:58]}  dxc4 {[%clk 0:03:01]} 3. Qa4+ {[%clk 0:02:56]}  Nc6 {[%clk 0:02:59]} 4. Nf3 {[%clk 0:02:54]}  Nf6 {[%clk 0:02:57]} 5. Qxc4 {[%clk 0:02:54]}  Nd5 {[%clk 0:02:57]} 6. e4 {[%clk 0:02:45]}  Nb6 {[%clk 0:02:56]} 7. Qd3 {[%clk 0:02:34]}  Bg4 {[%clk 0:02:41]} 8. Be3 {[%clk 0:02:30]}  Qd7 {[%clk 0:02:10]} 9. Nc3 {[%clk 0:02:27]}  O-O-O {[%clk 0:02:07]} 10. O-O-O {[%clk 0:02:25]}  Bxf3 {[%clk 0:01:59]} 11. gxf3 {[%clk 0:02:25]}  e6 {[%clk 0:02:00]} 12. Bh3 {[%clk 0:02:23]}  Kb8 {[%clk 0:01:45]} 13. a3 {[%clk 0:02:22]}  Na5 {[%clk 0:01:42]} 14. Kb1 {[%clk 0:02:13]}  Nbc4 {[%clk 0:01:39]} 15. Bc1 {[%clk 0:02:13]}  Qc6 {[%clk 0:01:39]} 16. d5 {[%clk 0:02:07]}  Qb6 {[%clk 0:01:35]} 17. Na4 {[%clk 0:01:55]}  Qb5 {[%clk 0:01:35]} 18. Nc3 {[%clk 0:01:29]}  Nxa3+ {[%clk 0:01:31]} 19. Ka2 {[%clk 0:01:29]}  Qb3+ {[%clk 0:01:29]} 20. Ka1 {[%clk 0:01:27]}  Nc2+ {[%clk 0:01:29]} 21. Kb1 {[%clk 0:01:27]}  Nb4 {[%clk 0:01:23]} 22. Bf1 {[%clk 0:00:41]}  Nxd3 {[%clk 0:01:22]} 23. Bxd3 {[%clk 0:00:40]}  exd5 {[%clk 0:01:10]} 24. Bc2 {[%clk 0:00:37]}  Qc4 {[%clk 0:00:58]} 25. exd5 {[%clk 0:00:37]}  Bb4 {[%clk 0:00:55]} 26. Bd3 {[%clk 0:00:29]}  Qb3 {[%clk 0:00:53]} 27. Bc2 {[%clk 0:00:29]}  Qc4 {[%clk 0:00:53]} 28. Bd3 {[%clk 0:00:29]}  Qc5 {[%clk 0:00:54]} 29. Be3 {[%clk 0:00:26]}  Qe7 {[%clk 0:00:51]} 30. Nb5 {[%clk 0:00:16]}  Bc5 {[%clk 0:00:48]} 31. Rhe1 {[%clk 0:00:12]}  Bxe3 {[%clk 0:00:47]} 32. fxe3 {[%clk 0:00:12]}  Rxd5 {[%clk 0:00:45]} 33. e4 {[%clk 0:00:12]}  Rd7 {[%clk 0:00:44]} 34. Bc2 {[%clk 0:00:11]}  Rhd8 {[%clk 0:00:43]} 35. Rc1 {[%clk 0:00:12]}  Qb4 {[%clk 0:00:43]} 36. Nc3 {[%clk 0:00:11]}  Nb3 {[%clk 0:00:43]} 0-1


[Site "https://www.chess.com"]

[Event "Titled Tuesday Blitz December 27 Late 2022"]
[White "Atakishiyev, Elmar"]
[Black "Omariev, Maksim"]
[WhiteFideId "13410547"]
[BlackFideId "4193423"]
[WhiteElo "2363"]
[BlackElo "2304"]
[Result "1-0"]
[Round "01"]
[TimeControl "180+2"]
[Date "2022.12.27"]
[WhiteClock "0:00:11"]
[BlackClock "0:00:01"]

1. Nf3 {[%clk 0:02:59]}  d5 {[%clk 0:02:57]} 2. g3 {[%clk 0:02:59]}  c6 {[%clk 0:02:57]} 3. Bg2 {[%clk 0:02:59]}  Nf6 {[%clk 0:02:57]} 4. O-O {[%clk 0:02:59]}  Bf5 {[%clk 0:02:58]} 5. d3 {[%clk 0:02:59]}  e6 {[%clk 0:02:58]} 6. Nbd2 {[%clk 0:02:59]}  h6 {[%clk 0:02:53]} 7. Re1 {[%clk 0:02:59]}  Bh7 {[%clk 0:02:53]} 8. e4 {[%clk 0:02:59]}  Be7 {[%clk 0:02:54]} 9. Qe2 {[%clk 0:02:59]}  O-O {[%clk 0:02:54]} 10. e5 {[%clk 0:03:00]}  Nfd7 {[%clk 0:02:53]} 11. h4 {[%clk 0:02:59]}  c5 {[%clk 0:02:54]} 12. Nf1 {[%clk 0:02:59]}  Nc6 {[%clk 0:02:54]} 13. N1h2 {[%clk 0:02:59]}  Kh8 {[%clk 0:02:47]} 14. h5 {[%clk 0:02:58]}  b5 {[%clk 0:02:46]} 15. Ng4 {[%clk 0:02:58]}  a5 {[%clk 0:02:34]} 16. Bf4 {[%clk 0:02:55]}  a4 {[%clk 0:02:27]} 17. Qd2 {[%clk 0:02:50]}  Rg8 {[%clk 0:02:22]} 18. Re2 {[%clk 0:02:19]}  b4 {[%clk 0:02:20]} 19. Rae1 {[%clk 0:02:08]}  Rc8 {[%clk 0:02:14]} 20. Bh3 {[%clk 0:02:07]}  Na7 {[%clk 0:01:38]} 21. Kh2 {[%clk 0:01:26]}  Nb5 {[%clk 0:01:31]} 22. Rg1 {[%clk 0:01:26]}  c4 {[%clk 0:01:20]} 23. Bxh6 {[%clk 0:01:19]}  gxh6 {[%clk 0:01:19]} 24. Nxh6 {[%clk 0:01:19]}  Rg7 {[%clk 0:01:19]} 25. Qf4 {[%clk 0:01:20]}  Qf8 {[%clk 0:01:04]} 26. g4 {[%clk 0:01:20]}  cxd3 {[%clk 0:01:02]} 27. cxd3 {[%clk 0:01:19]}  Bxd3 {[%clk 0:01:03]} 28. Re3 {[%clk 0:01:19]}  Rc4 {[%clk 0:00:58]} 29. Qg3 {[%clk 0:01:13]}  Bc2 {[%clk 0:00:34]} 30. g5 {[%clk 0:01:12]}  d4 {[%clk 0:00:29]} 31. Ree1 {[%clk 0:00:57]}  b3 {[%clk 0:00:23]} 32. axb3 {[%clk 0:00:56]}  axb3 {[%clk 0:00:23]} 33. Nd2 {[%clk 0:00:54]}  Rc5 {[%clk 0:00:16]} 34. f4 {[%clk 0:00:54]}  Nc7 {[%clk 0:00:09]} 35. Rg2 {[%clk 0:00:41]}  Nd5 {[%clk 0:00:10]} 36. Qf3 {[%clk 0:00:35]}  Ne3 {[%clk 0:00:09]} 37. Rg3 {[%clk 0:00:36]}  Nb6 {[%clk 0:00:08]} 38. Reg1 {[%clk 0:00:36]}  Qa8 {[%clk 0:00:08]} 39. Qf2 {[%clk 0:00:31]}  Nbc4 {[%clk 0:00:08]} 40. g6 {[%clk 0:00:31]}  fxg6 {[%clk 0:00:03]} 41. hxg6 {[%clk 0:00:31]}  Nxd2 {[%clk 0:00:01]} 42. Nf7+ {[%clk 0:00:29]}  Kg8 {[%clk 0:00:01]} 43. Qxd2 {[%clk 0:00:22]}  Bf5 {[%clk 0:00:02]} 44. Nh6+ {[%clk 0:00:22]}  Kf8 {[%clk 0:00:02]} 45. Qxd4 {[%clk 0:00:11]}  Rc2+ {[%clk 0:00:01]} 46. Bg2 {[%clk 0:00:11]} 1-0


[Site "https://www.chess.com"]